bitfinex/quotes_BTCUSD_20251231
["timestamp","ask_amount","ask_price","bid_price","bid_amount"]
[1767140458716,0.14800336,88391.0,88380.0,0.011432]
[1767140458916,0.13669,88390.0,88380.0,0.011432]
[1767140459116,0.000438,88380.0,88375.0,0.0001122]
[1767140459318,0.000438,88380.0,88360.0,0.22634548]
[1767140459319,0.13669,88379.0,88362.0,0.01131708]
[1767140459528,0.13669,88379.0,88366.0,0.01131656]
[1767140459727,0.13669,88379.0,88365.0,0.01131669]
[1767140460405,0.13669,88379.0,88366.0,0.01131656]
[1767140460638,0.13669,88379.0,88368.0,0.01131631]
[1767140460840,0.13669,88384.0,88368.0,0.01131631]
[1767140461039,0.14800426,88384.0,88367.0,0.01131644]
[1767140461276,0.14800426,88384.0,88368.0,0.01131631]
[1767140461937,0.14800439,88383.0,88367.0,0.01131644]
[1767140462143,0.13669,88382.0,88367.0,0.01131644]
[1767140464004,0.13669,88382.0,88368.0,0.01131631]
[1767140464806,0.13669,88382.0,88367.0,0.01131644]
[1767140465234,0.13669,88382.0,88368.0,0.01131631]
[1767140466375,0.13669,88382.0,88367.0,0.01131644]
[1767140466541,0.41562212,88380.0,88366.0,0.14061]
[1767140466877,0.42693689,88380.0,88366.0,0.14061]
[1767140467079,0.0113149,88379.0,88366.0,0.14061]
[1767140467280,0.15618503,88378.0,88363.0,0.01132]
[1767140467421,0.41562212,88373.0,88363.0,0.02263695]
[1767140467823,0.14487,88378.0,88363.0,0.02263695]
[1767140468704,0.14487,88378.0,88364.0,0.01131682]
[1767140468825,0.14487,88378.0,88363.0,0.02263695]
[1767140469701,0.14487,88378.0,88364.0,0.01131682]
[1767140471477,0.14487,88378.0,88366.0,0.01131656]
[1767140471703,0.14487,88378.0,88365.0,0.01131669]
[1767140472410,0.14487,88378.0,88366.0,0.01131656]
[1767140472609,0.14487,88378.0,88367.0,0.01131644]
[1767140472808,0.14487,88378.0,88365.0,0.01131669]
[1767140473512,0.41562212,88380.0,88365.0,0.01131669]
[1767140473936,0.41562212,88380.0,88364.0,0.06790051]
[1767140474136,0.42693689,88380.0,88363.0,0.02263695]
[1767140474273,0.56049212,88380.0,88364.0,0.01131682]
[1767140475082,0.56049212,88380.0,88365.0,0.01131669]
[1767140475276,0.56049212,88380.0,88366.0,0.01131656]
[1767140475797,0.57180689,88380.0,88363.0,0.02263695]
[1767140476008,0.56049212,88380.0,88365.0,0.01131669]
[1767140476410,0.14780516,88377.0,88363.0,0.01132]
[1767140476613,0.13649,88377.0,88363.0,0.01132]
[1767140476842,0.13649,88377.0,88363.0,0.02263695]
[1767140477241,0.13649,88377.0,88363.0,0.01132]
[1767140479629,0.14780516,88377.0,88363.0,0.01132]
[1767140482376,0.13649,88377.0,88363.0,0.01132]
[1767140483098,0.13649,88377.0,88363.0,0.02263695]
[1767140483271,0.13649,88377.0,88363.0,0.01132]
[1767140483447,0.42693689,88380.0,88364.0,0.13735]
[1767140483651,0.42693689,88380.0,88364.0,0.14866682]
[1767140484055,0.42693689,88380.0,88364.0,0.13735]
[1767140484915,0.42693689,88380.0,88364.0,0.14866682]
[1767140485655,0.41562212,88380.0,88364.0,0.14866682]
[1767140485856,0.41562212,88380.0,88365.0,0.01131669]
[1767140486059,0.41562212,88380.0,88366.0,0.01131656]
[1767140486260,0.41562212,88380.0,88365.0,0.01131669]
[1767140487307,0.41562212,88380.0,88366.0,0.01131656]
[1767140487682,0.41562212,88380.0,88365.0,0.01131669]
[1767140488037,0.41562212,88380.0,88366.0,0.01131656]
[1767140488385,0.41562212,88380.0,88365.0,0.01131669]
[1767140490502,0.41562212,88380.0,88366.0,0.01131656]
[1767140491843,0.41562212,88380.0,88365.0,0.01131669]
[1767140492210,0.01131439,88383.0,88366.0,0.14866656]
[1767140492410,0.41562212,88380.0,88366.0,0.14866656]
[1767140492630,0.55211212,88380.0,88366.0,0.13735]
[1767140493772,0.56342689,88380.0,88366.0,0.13735]
[1767140493918,0.55211212,88380.0,88366.0,0.13735]
[1767140494124,0.56342689,88380.0,88366.0,0.13735]
[1767140494325,0.55211212,88380.0,88366.0,0.13735]
[1767140494730,0.56342689,88380.0,88366.0,0.13735]
[1767140494936,0.55211212,88380.0,88366.0,0.13735]
[1767140497758,0.56342689,88380.0,88366.0,0.13735]
[1767140498551,0.55211212,88380.0,88366.0,0.13735]
[1767140500209,0.56342689,88380.0,88366.0,0.13735]
[1767140500563,0.55211212,88380.0,88366.0,0.13735]
[1767140501306,0.0113149,88379.0,88366.0,0.13735]
[1767140501952,0.05657516,88378.0,88366.0,0.13735]
[1767140502158,0.01131516,88377.0,88366.0,0.13735]
[1767140502718,0.13649,88374.0,88363.0,0.01132]
[1767140502978,0.136928,88366.0,88363.0,0.01132]
[1767140503170,0.000438,88366.0,88363.0,0.01132]
[1767140503394,0.13649,88371.0,88363.0,0.01132]
[1767140504292,0.41562212,88373.0,88371.0,0.000111]
[1767140504510,0.01131541,88375.0,88363.0,0.01140052]
[1767140505044,0.06789228,88376.0,88363.0,0.01140052]
[1767140505246,0.01131528,88376.0,88363.0,0.01140052]
[1767140505448,0.13649,88377.0,88363.0,0.01140052]
[1767140506295,0.41562212,88373.0,88363.0,0.01140052]
[1767140509307,0.15916516,88377.0,88363.0,0.01140052]
[1767140509871,0.14785,88377.0,88363.0,0.01140052]
[1767140510604,0.15916516,88377.0,88363.0,0.01140052]
[1767140510936,0.13649,88377.0,88363.0,0.01140052]
[1767140514101,0.14780516,88377.0,88363.0,0.01140052]
[1767140515404,0.41562212,88373.0,88363.0,0.01140052]
[1767140517310,0.14780516,88377.0,88363.0,0.01140052]
[1767140518955,0.13649,88377.0,88363.0,0.01140052]
[1767140519855,0.41562212,88373.0,88363.0,0.01140052]
[1767140520059,0.13649,88377.0,88363.0,0.01140052]
[1767140520761,0.14356,88362.0,88357.0,3.68e-06]
[1767140520930,0.14366665,88362.0,88357.0,3.68e-06]
[1767140521106,0.14356,88359.0,88357.0,3.68e-06]
[1767140521360,0.01131849,88351.0,88348.0,8.08e-06]
[1767140521564,0.01131849,88351.0,88344.0,8.08e-06]
[1767140521565,0.14356,88346.0,88344.0,8.08e-06]
[1767140522060,0.14356,88353.0,88346.0,0.000192]
[1767140522410,0.14356,88353.0,88344.0,8.08e-06]
[1767140522848,0.48352661,88360.0,88344.0,8.08e-06]
[1767140523029,0.01136,88359.0,88353.0,0.000192]
[1767140523432,0.01136,88359.0,88349.0,0.14255]
[1767140523812,0.41562212,88360.0,88349.0,0.14255]
[1767140524018,0.41562212,88360.0,88352.0,0.14255]
[1767140524218,0.41572877,88362.0,88352.0,0.14255]
[1767140526191,0.0001122,88364.0,88362.0,0.000192]
[1767140526485,0.00019271,88364.0,88362.0,0.000192]
[1767140526702,0.00019271,88364.0,88356.0,0.14255]
[1767140527409,7.1e-07,88364.0,88356.0,0.14255]
[1767140537631,7.1e-07,88364.0,88353.0,0.01136]
[1767140542579,7.1e-07,88364.0,88348.0,0.05670616]
[1767140542580,0.14257,88363.0,88352.0,0.01136]
[1767140543488,7.1e-07,88364.0,88352.0,0.01136]
[1767140543693,7.1e-07,88364.0,88352.0,0.14746]
[1767140544533,7.1e-07,88364.0,88352.0,0.01136]
[1767140544700,0.14257,88363.0,88352.0,0.01136]
[1767140547977,7.1e-07,88364.0,88352.0,0.01136]
[1767140551495,7.1e-07,88364.0,88352.0,0.01037284]
[1767140552262,7.1e-07,88364.0,88352.0,0.1577912]
[1767140552538,7.1e-07,88364.0,88352.0,0.14647284]
[1767140552894,7.1e-07,88364.0,88352.0,0.1577912]
[1767140553102,7.1e-07,88364.0,88352.0,0.14647284]
[1767140554037,7.1e-07,88364.0,88352.0,0.1577912]
[1767140554396,7.1e-07,88364.0,88352.0,0.14647284]
[1767140554840,7.1e-07,88364.0,88352.0,0.01037284]
[1767140555604,0.01131695,88363.0,88352.0,0.01037284]
[1767140555806,0.01131753,88364.0,88352.0,0.01037284]
[1767140556529,0.01131695,88363.0,88352.0,0.14647284]
[1767140557194,0.01131753,88364.0,88352.0,0.14647284]
[1767140557395,7.1e-07,88364.0,88352.0,0.14647284]
[1767140558334,0.01131753,88364.0,88352.0,0.14647284]
[1767140558529,7.1e-07,88364.0,88352.0,0.14647284]
[1767140560666,7.1e-07,88364.0,88353.0,0.14741823]
[1767140561061,7.1e-07,88364.0,88355.0,0.1361]
[1767140578861,7.1e-07,88364.0,88355.0,0.12767101]
[1767140586604,0.01,88360.0,88355.0,0.12767101]
[1767140589241,0.009451,88360.0,88355.0,0.12767101]
[1767140593810,0.009451,88360.0,88355.0,0.13898898]
[1767140594575,0.009451,88360.0,88355.0,0.12767101]
[1767140595698,7.1e-07,88364.0,88352.0,0.0216912]
[1767140595699,7.1e-07,88364.0,88359.0,0.01131746]
[1767140595855,7.1e-07,88364.0,88361.0,0.15439721]
[1767140596195,7.1e-07,88364.0,88362.0,0.14308]
[1767140596397,7.1e-07,88364.0,88363.0,0.1468]
[1767140596822,7.1e-07,88364.0,88362.0,0.05658493]
[1767140596823,0.03053845,88391.0,88377.0,0.1468]
[1767140596979,0.41574537,88390.0,88378.0,0.01136]
[1767140597178,0.41574537,88390.0,88373.0,0.01131567]
[1767140597179,0.000549,88378.0,88376.0,0.01136]
[1767140597563,0.14864,88386.0,88376.0,0.01136]
[1767140598990,0.15995426,88384.0,88370.0,0.01136]
[1767140599192,0.14864,88376.0,88364.0,0.01131682]
[1767140599601,0.14864,88376.0,88366.0,0.01131656]
[1767140600023,0.14864,88376.0,88367.0,0.01131644]
[1767140601554,0.14864,88376.0,88368.0,0.01131631]
[1767140602479,0.14864,88376.0,88367.0,0.01131644]
[1767140602617,0.14864,88376.0,88368.0,0.01131631]
[1767140602821,0.41574537,88380.0,88367.0,0.01131644]
[1767140603275,0.14864,88381.0,88369.0,0.01131618]
[1767140603573,0.41574537,88380.0,88369.0,0.01131618]
[1767140603918,0.01142633,88385.0,88372.0,0.1468]
[1767140603919,0.01136,88382.0,88372.0,0.1468]
[1767140604470,0.0001122,88385.0,88372.0,0.1468]
[1767140605672,0.0001122,88385.0,88372.0,0.1581158]
[1767140606103,0.0001122,88385.0,88373.0,0.01131567]
[1767140606288,0.0001122,88385.0,88373.0,0.1468]
[1767140608735,0.0001122,88385.0,88375.0,0.41574537]
[1767140608939,0.0001122,88385.0,88378.0,0.15811503]
[1767140609181,0.0001122,88391.0,88385.0,0.0001098]
[1767140609971,0.0001122,88391.0,88383.0,0.1468]
[1767140611734,0.0001122,88398.0,88391.0,0.0001098]
[1767140611933,0.0001122,88398.0,88391.0,0.1468]
[1767140612376,0.0001122,88398.0,88386.0,0.1468]
[1767140613370,0.01142467,88398.0,88386.0,0.1468]
[1767140613577,0.0001122,88398.0,88386.0,0.1468]
[1767140619215,0.20531508,88398.0,88384.0,0.01136]
[1767140619768,0.16006467,88398.0,88384.0,0.01136]
[1767140620168,0.41574537,88394.0,88384.0,0.01136]
[1767140620389,0.000554,88384.0,88376.0,0.01131528]
[1767140620644,6.442e-05,88384.0,88377.0,0.02267516]
[1767140621593,6.442e-05,88384.0,88377.0,0.01136]
[1767140621992,6.442e-05,88384.0,88375.0,0.0001122]
[1767140622191,6.442e-05,88384.0,88376.0,0.01132]
[1767140624412,0.15947439,88383.0,88376.0,0.0035559]
[1767140624627,0.14816,88381.0,88376.0,0.0030019]
[1767140625414,0.14816,88381.0,88375.0,0.0001122]
[1767140630340,0.01131477,88380.0,88375.0,0.0001122]
[1767140630691,0.14816,88381.0,88375.0,0.0001122]
[1767140635284,0.01131439,88383.0,88375.0,0.0001122]
[1767140636657,0.01131452,88382.0,88375.0,0.0001122]
[1767140638411,0.01131439,88383.0,88375.0,0.0001122]
[1767140638610,0.01131464,88381.0,88375.0,0.0001122]
[1767140638838,0.01131452,88382.0,88375.0,0.0001122]
[1767140639015,0.06788775,88382.0,88375.0,0.0001122]
[1767140639355,0.01131464,88381.0,88375.0,0.0001122]
[1767140639504,0.01131477,88380.0,88375.0,0.0001122]
[1767140639705,0.01131464,88381.0,88375.0,0.0001122]
[1767140640102,0.01131477,88380.0,88375.0,0.0001122]
[1767140640466,0.0113149,88379.0,88375.0,0.0001122]
[1767140640955,0.01131477,88380.0,88375.0,0.0001122]
[1767140641359,0.01127226,88381.0,88375.0,0.0001122]
[1767140641538,0.01131503,88378.0,88375.0,0.0001122]
[1767140641747,0.01136,88379.0,88361.0,0.0001122]
[1767140641924,0.41574537,88371.0,88362.0,0.01136]
[1767140642128,0.41508337,88371.0,88362.0,0.01136]
[1767140646092,0.55245337,88371.0,88362.0,0.01136]
[1767140646640,0.13737,88371.0,88362.0,0.01136]
[1767140649054,0.01131554,88374.0,88362.0,0.01136]
[1767140649259,0.01131541,88375.0,88362.0,0.01136]
[1767140650178,0.20526185,88376.0,88362.0,0.01136]
[1767140650179,0.14868528,88376.0,88362.0,0.01136]
[1767140650626,0.0113158,88372.0,88362.0,0.01136]
[1767140650810,0.1486858,88372.0,88362.0,0.01136]
[1767140651306,0.13737,88372.0,88362.0,0.01136]
[1767140654554,0.1486858,88372.0,88362.0,0.01136]
[1767140657025,0.13737,88372.0,88362.0,0.01136]
[1767140664054,0.1486858,88372.0,88362.0,0.01136]
[1767140664469,0.13737,88372.0,88362.0,0.01136]
[1767140669829,0.000549,88362.0,88361.0,0.0001122]
[1767140670076,0.14776,88362.0,88349.0,0.01136]
[1767140670275,0.15907708,88362.0,88349.0,0.01136]
[1767140670424,0.14776,88362.0,88349.0,0.01136]
[1767140670831,0.14776,88362.0,88350.0,0.01131861]
[1767140671449,0.14776,88362.0,88349.0,0.01136]
[1767140671887,0.14776,88362.0,88350.0,0.01131861]
[1767140672071,0.147648,88362.0,88350.0,0.01131861]
[1767140672452,0.147648,88362.0,88351.0,0.01131849]
[1767140674296,0.147648,88362.0,88350.0,0.01131861]
[1767140674619,0.147648,88362.0,88349.0,0.02267874]
[1767140674988,0.147648,88362.0,88350.0,0.01131861]
[1767140675160,0.147648,88362.0,88349.0,0.02267874]
[1767140676196,0.147648,88362.0,88350.0,0.01131861]
[1767140676377,0.147648,88362.0,88349.0,0.02267874]
[1767140677388,0.147648,88362.0,88350.0,0.01131861]
[1767140677788,0.147648,88362.0,88349.0,0.02267874]
[1767140677987,0.147648,88362.0,88350.0,0.01131861]
[1767140678805,0.147648,88362.0,88351.0,0.01131849]
[1767140679639,0.147648,88362.0,88350.0,0.01131861]
[1767140679837,0.147648,88362.0,88351.0,0.01131849]
[1767140680045,0.01136,88364.0,88350.0,0.16064861]
[1767140681375,0.01136,88364.0,88351.0,0.01131849]
[1767140682038,0.01136,88364.0,88350.0,0.16064861]
[1767140682239,0.01136,88364.0,88351.0,0.01131849]
[1767140682590,0.01136,88365.0,88358.0,0.14933]
[1767140682798,0.01136,88370.0,88358.0,0.14933]
[1767140684631,0.02267605,88370.0,88358.0,0.14933]
[1767140684772,0.01136,88370.0,88358.0,0.14933]
[1767140688372,0.05657443,88380.0,88358.0,0.16064759]
[1767140688679,0.01136,88377.0,88363.0,0.13773]
[1767140688875,0.01136,88377.0,88365.0,0.01131669]
[1767140689140,0.01136,88377.0,88367.0,0.01131644]
[1767140689898,0.01136,88377.0,88368.0,0.01131631]
[1767140690283,0.01136,88377.0,88369.0,0.01131618]
[1767140690484,0.01136,88377.0,88368.0,0.01131631]
[1767140691691,0.01136,88377.0,88369.0,0.01131618]
[1767140692098,0.01136,88377.0,88368.0,0.01131631]
[1767140692945,0.01136,88377.0,88369.0,0.01131618]
[1767140694736,0.01136,88377.0,88370.0,0.01131605]
[1767140694942,0.01136,88377.0,88369.0,0.01131618]
[1767140695325,0.01136,88377.0,88370.0,0.01131605]
[1767140695895,0.0001122,88378.0,88369.0,0.01131618]
[1767140696107,0.02290467,88385.0,88371.0,0.14904592]
[1767140696459,0.01136,88385.0,88371.0,0.13779442]
[1767140697416,0.02267413,88385.0,88371.0,0.13779442]
[1767140698146,0.01136,88385.0,88371.0,0.13779442]
[1767140699153,0.02267413,88385.0,88371.0,0.13779442]
[1767140699556,0.00048458,88371.0,88368.0,0.0001122]
[1767140700098,0.13898,88381.0,88368.0,0.0001122]
[1767140700337,0.01131477,88380.0,88368.0,0.0001122]
[1767140700538,0.14253,88375.0,88368.0,2e-07]
[1767140702263,0.01131528,88376.0,88368.0,2e-07]
[1767140702264,0.14253,88372.0,88368.0,2e-07]
[1767140705453,0.14253,88370.0,88368.0,2e-07]
[1767140714835,0.0113158,88372.0,88368.0,2e-07]
[1767140715058,0.15384567,88373.0,88368.0,2e-07]
[1767140716454,0.0113158,88372.0,88368.0,2e-07]
[1767140716655,0.15384567,88373.0,88368.0,2e-07]
[1767140717243,0.14253,88373.0,88368.0,2e-07]
[1767140717448,0.15384567,88373.0,88368.0,2e-07]
[1767140717654,0.0113158,88372.0,88368.0,2e-07]
[1767140718061,0.15384567,88373.0,88368.0,2e-07]
[1767140719905,0.0113158,88372.0,88368.0,2e-07]
[1767140720108,0.15384567,88373.0,88368.0,2e-07]
[1767140720345,0.14253,88373.0,88368.0,2e-07]
[1767140720567,0.15384567,88373.0,88368.0,2e-07]
[1767140720768,0.14253,88373.0,88368.0,2e-07]
[1767140722169,0.15384567,88373.0,88368.0,2e-07]
[1767140723643,0.14981,88371.0,88368.0,2e-07]
[1767140724267,0.01131554,88374.0,88368.0,2e-07]
[1767140724996,0.01131567,88373.0,88368.0,2e-07]
[1767140725354,0.16112567,88373.0,88368.0,2e-07]
[1767140726127,0.0113158,88372.0,88368.0,2e-07]
[1767140727334,0.14981,88373.0,88368.0,2e-07]
[1767140727562,0.16112567,88373.0,88368.0,2e-07]
[1767140728244,0.14981,88373.0,88368.0,2e-07]
[1767140729141,0.16112567,88373.0,88368.0,2e-07]
[1767140729669,0.14981,88373.0,88368.0,2e-07]
[1767140730398,0.16112567,88373.0,88368.0,2e-07]
[1767140731017,0.01131592,88371.0,88368.0,2e-07]
[1767140731320,0.16112592,88371.0,88368.0,2e-07]
[1767140732277,0.14981,88371.0,88368.0,2e-07]
[1767140732484,0.16112592,88371.0,88368.0,2e-07]
[1767140734930,0.14981,88371.0,88368.0,2e-07]
[1767140735157,0.16112592,88371.0,88368.0,2e-07]
[1767140735842,0.05658067,88370.0,88368.0,2e-07]
[1767140736086,0.14981,88369.0,88368.0,2e-07]
[1767140738063,0.05658067,88370.0,88368.0,2e-07]
[1767140738613,0.06789615,88371.0,88368.0,2e-07]
[1767140739344,0.06789615,88371.0,88354.0,0.1373822]
[1767140739345,0.01131631,88368.0,88354.0,0.1373822]
[1767140740257,0.42701157,88370.0,88354.0,0.1373822]
[1767140740457,0.01131631,88368.0,88354.0,0.1373822]
[1767140740667,0.01131618,88369.0,88354.0,0.1373822]
[1767140740848,0.42701157,88370.0,88354.0,0.1373822]
[1767140741046,0.01131618,88369.0,88354.0,0.1373822]
[1767140741261,0.42701157,88370.0,88354.0,0.1487003]
[1767140741646,0.0001122,88378.0,88370.0,0.000177]
[1767140741866,0.0001122,88378.0,88371.0,0.13727]
[1767140743009,0.0001122,88378.0,88366.0,0.14863]
[1767140745699,0.01142723,88378.0,88366.0,0.14863]
[1767140746109,0.0001122,88378.0,88366.0,0.14863]
[1767140747330,0.0001122,88378.0,88366.0,0.15994656]
[1767140747559,0.0001122,88378.0,88366.0,0.14863]
[1767140753658,0.41569552,88376.0,88365.0,0.01136]
[1767140754006,0.0001122,88378.0,88366.0,0.01131656]
[1767140754369,0.0001122,88378.0,88367.0,0.01131644]
[1767140754591,0.0001122,88378.0,88366.0,0.01131656]
[1767140755099,0.0001122,88378.0,88365.0,0.15032]
[1767140759437,0.0001122,88378.0,88365.0,0.1617172]
[1767140760451,0.0001122,88378.0,88365.0,0.15040051]
[1767140763621,0.0001122,88378.0,88365.0,0.1617172]
[1767140764412,0.0001122,88378.0,88367.0,0.14021]
[1767140764959,0.0001122,88378.0,88367.0,0.15152644]
[1767140765912,0.0001122,88378.0,88368.0,0.01131631]
[1767140766393,0.0001122,88378.0,88367.0,0.15152644]
[1767140770063,0.0001122,88378.0,88367.0,0.14021]
[1767140771215,0.0001122,88378.0,88368.0,0.14021]
[1767140771631,0.0001122,88378.0,88368.0,0.15152631]
[1767140772937,0.0001122,88378.0,88369.0,0.01131618]
[1767140773639,0.0001122,88378.0,88368.0,0.15152631]
[1767140773640,0.0001122,88378.0,88368.0,0.14021]
[1767140774339,0.0001122,88378.0,88368.0,0.15152631]
[1767140775439,0.0001122,88378.0,88368.0,0.14021]
[1767140776874,0.0001122,88378.0,88368.0,0.15152631]
[1767140777235,0.0001122,88378.0,88368.0,0.14021]
[1767140779552,0.0001122,88378.0,88365.0,0.01144051]
[1767140779553,0.0001122,88378.0,88365.0,0.0227572]
[1767140779952,0.0001122,88378.0,88365.0,0.01144051]
[1767140781773,0.01142723,88378.0,88365.0,0.01144051]
[1767140782521,0.01131516,88377.0,88365.0,0.01144051]
[1767140782722,0.01142723,88378.0,88365.0,0.01144051]
[1767140783428,0.0001122,88378.0,88365.0,0.01144051]
[1767140783576,0.01142723,88378.0,88365.0,0.01144051]
[1767140783778,0.0001122,88378.0,88365.0,0.01144051]
[1767140784381,0.01142723,88378.0,88365.0,0.01144051]
[1767140784784,0.0001122,88378.0,88365.0,0.01144051]
[1767140785099,0.01142723,88378.0,88365.0,0.01144051]
[1767140785395,0.0001122,88378.0,88365.0,0.01144051]
[1767140785581,0.01142723,88378.0,88365.0,0.01144051]
[1767140786081,0.0001122,88378.0,88365.0,0.01144051]
[1767140787231,0.01142723,88378.0,88365.0,0.01144051]
[1767140789158,0.01131516,88377.0,88365.0,0.01144051]
[1767140789358,0.01142723,88378.0,88365.0,0.01144051]
[1767140789986,0.01131528,88376.0,88365.0,0.01144051]
[1767140790200,0.01131516,88377.0,88365.0,0.01144051]
[1767140791025,0.01142723,88378.0,88365.0,0.01144051]
[1767140791468,0.01131516,88377.0,88365.0,0.01144051]
[1767140791667,0.01142723,88378.0,88365.0,0.01144051]
[1767140791861,0.0001122,88378.0,88365.0,0.01144051]
[1767140792068,0.01142723,88378.0,88365.0,0.01144051]
[1767140793951,0.01131516,88377.0,88365.0,0.01144051]
[1767140794354,0.01131528,88376.0,88365.0,0.01144051]
[1767140794761,0.01131516,88377.0,88365.0,0.01144051]
[1767140795440,0.0001122,88378.0,88365.0,0.01144051]
[1767140795902,0.01142723,88378.0,88365.0,0.01144051]
[1767140796075,0.01131516,88377.0,88365.0,0.01144051]
[1767140796508,0.01131541,88375.0,88365.0,0.01144051]
[1767140797081,0.01131541,88375.0,88365.0,0.0113972]
[1767140797573,0.01131528,88376.0,88365.0,0.0113972]
[1767140797987,0.01131541,88375.0,88365.0,0.0113972]
[1767140798197,0.01131528,88376.0,88365.0,0.0113972]
[1767140799769,0.01131528,88376.0,88365.0,0.1556072]
[1767140800007,0.01142723,88378.0,88365.0,0.1556072]
[1767140800758,0.0001122,88378.0,88365.0,0.1556072]
[1767140801753,0.01131516,88377.0,88365.0,0.1556072]
[1767140801962,0.01142723,88378.0,88365.0,0.1556072]
[1767140802165,0.01131516,88377.0,88365.0,0.1556072]
[1767140803112,0.01142723,88378.0,88365.0,0.1556072]
[1767140804268,0.01131528,88376.0,88365.0,0.1556072]
[1767140804415,0.01142723,88378.0,88365.0,0.1556072]
[1767140804818,0.01131516,88377.0,88365.0,0.1556072]
[1767140807305,0.01131528,88376.0,88365.0,0.1556072]
[1767140807444,0.01131516,88377.0,88365.0,0.1556072]
[1767140807668,0.01131528,88376.0,88365.0,0.0113972]
[1767140808805,0.01131541,88375.0,88365.0,0.0113972]
[1767140809256,0.01131528,88376.0,88365.0,0.0113972]
[1767140809468,0.01131618,88369.0,88365.0,8.051e-05]
[1767140809692,0.15570631,88368.0,88356.0,0.01136]
[1767140809898,0.01131644,88367.0,88356.0,0.01136]
[1767140810106,0.14439,88368.0,88356.0,0.01136]
[1767140811168,0.144133,88368.0,88356.0,0.01136]
[1767140811924,0.144133,88368.0,88356.0,0.02267785]
[1767140812124,0.15570554,88374.0,88357.0,0.01131772]
[1767140812254,0.14439,88374.0,88357.0,0.01131772]
[1767140812594,0.01136,88375.0,88359.0,0.14277]
[1767140812792,0.02267541,88375.0,88359.0,0.15408746]
[1767140813447,0.01131554,88374.0,88359.0,0.14277]
[1767140814160,0.01131567,88373.0,88359.0,0.14277]
[1767140814382,0.01131554,88374.0,88359.0,0.14277]
[1767140815040,0.02267541,88375.0,88359.0,0.15408746]
[1767140815199,0.01131554,88374.0,88359.0,0.14277]
[1767140815401,0.02267541,88375.0,88359.0,0.15408746]
[1767140815807,0.01131554,88374.0,88359.0,0.14277]
[1767140817817,0.02267541,88375.0,88359.0,0.15408746]
[1767140818018,0.01131554,88374.0,88359.0,0.14277]
[1767140818218,0.02267541,88375.0,88359.0,0.14277]
[1767140818663,0.02267541,88375.0,88359.0,0.15408746]
[1767140819833,0.02267541,88375.0,88359.0,0.14277]
[1767140820800,0.01131554,88374.0,88359.0,0.14277]
[1767140821696,0.02267541,88375.0,88359.0,0.14277]
[1767140821908,0.02267541,88375.0,88359.0,0.15408746]
[1767140823115,0.02267541,88375.0,88359.0,0.14277]
[1767140824316,0.02267541,88375.0,88359.0,0.15408746]
[1767140824681,0.01131554,88374.0,88359.0,0.14277]
[1767140826120,0.02267541,88375.0,88359.0,0.15408746]
[1767140826322,0.01136,88375.0,88360.0,0.14817733]
[1767140826765,0.01136,88375.0,88361.0,0.01131721]
[1767140832775,0.01136,88375.0,88362.0,0.01131708]
[1767140833202,0.01136,88375.0,88363.0,0.01131695]
[1767140833402,0.01136,88375.0,88364.0,0.01131682]
[1767140834459,0.01136,88375.0,88362.0,0.01131708]
[1767140834971,0.01136,88375.0,88363.0,0.01131695]
[1767140835394,0.01136,88375.0,88364.0,0.01131682]
[1767140835709,0.01136,88375.0,88363.0,0.01131695]
[1767140836386,0.01136,88375.0,88364.0,0.01131682]
[1767140836593,0.01136,88375.0,88363.0,0.01131695]
[1767140837124,0.01136,88375.0,88365.0,0.01131669]
[1767140837275,0.15575,88376.0,88363.0,0.01131695]
[1767140837479,0.15575,88376.0,88364.0,0.01131682]
[1767140837682,0.15575,88376.0,88363.0,0.01131695]
[1767140837882,0.15575,88376.0,88362.0,0.01131708]
[1767140838087,0.15575,88376.0,88363.0,0.01131695]
[1767140838933,0.15575,88376.0,88364.0,0.01131682]
[1767140839143,0.15575,88376.0,88365.0,0.01131669]
[1767140839506,0.15575,88376.0,88364.0,0.01131682]
[1767140839874,0.15575,88376.0,88365.0,0.01131669]
[1767140840717,0.15575,88376.0,88366.0,0.01131656]
[1767140841194,0.15575,88376.0,88365.0,0.01131669]
[1767140841399,0.15575,88376.0,88366.0,0.01131656]
[1767140841966,0.0001122,88378.0,88368.0,0.01131631]
[1767140842258,0.0001122,88378.0,88369.0,0.15853618]
[1767140842453,0.0001122,88378.0,88370.0,0.01131605]
[1767140842722,0.0001122,88378.0,88371.0,0.01131592]
[1767140842968,2.2e-06,88378.0,88374.0,0.14722]
[1767140843670,2.2e-06,88378.0,88376.0,0.14722]
[1767140844597,2.2e-06,88378.0,88376.0,0.146671]
[1767140844807,2.2e-06,88378.0,88377.0,0.2037958]
[1767140845179,0.1348106,88405.0,88389.0,0.14722]
[1767140845381,0.01132,88406.0,88392.0,0.14722]
[1767140845705,0.01131157,88405.0,88392.0,0.14667]
[1767140845938,0.15998144,88406.0,88392.0,0.14667]
[1767140846166,0.41565696,88402.0,88390.0,0.01132]
[1767140846386,0.41565696,88400.0,88390.0,0.02263349]
[1767140846611,0.41565696,88400.0,88392.0,0.01131324]
[1767140846778,0.14867,88406.0,88393.0,0.01131311]
[1767140848183,0.14867,88406.0,88392.0,0.01131324]
[1767140848590,0.14867,88406.0,88393.0,0.01131311]
[1767140849667,0.14867,88406.0,88394.0,0.01131298]
[1767140850183,0.14867,88406.0,88395.0,0.01131285]
[1767140850779,0.14867,88406.0,88394.0,0.01131298]
[1767140850989,0.14867,88406.0,88395.0,0.01131285]
[1767140851236,0.01132,88406.0,88397.0,0.0113126]
[1767140851778,0.0001122,88412.0,88406.0,0.000549]
[1767140852188,0.0001122,88412.0,88409.0,0.01131106]
[1767140852393,0.01132,88417.0,88408.0,0.14722]
[1767140852590,0.13735,88416.0,88406.0,0.000549]
[1767140853034,0.0001122,88418.0,88406.0,0.000549]
[1767140853919,0.1374622,88418.0,88406.0,0.000549]
[1767140855246,0.1374622,88418.0,88406.0,0.01186044]
[1767140855653,0.1374622,88418.0,88406.0,0.000549]
[1767140856737,0.0001122,88425.0,88418.0,0.0003248]
[1767140861870,0.0001122,88425.0,88418.0,0.01163471]
[1767140862072,0.0001122,88425.0,88418.0,0.0003248]
[1767140862293,0.00046818,88425.0,88418.0,0.01163471]
[1767140862444,0.00046818,88425.0,88419.0,0.15852978]
[1767140862635,0.00046818,88425.0,88419.0,0.14722]
[1767140863526,0.00046818,88425.0,88420.0,0.01130965]
[1767140863785,0.0001122,88432.0,88425.0,0.15852901]
[1767140863990,0.0002189,88432.0,88426.0,0.02262889]
[1767140864197,0.0002189,88432.0,88428.0,0.14722]
[1767140864675,0.0002189,88432.0,88428.0,0.15852863]
[1767140864886,0.0002189,88432.0,88428.0,0.14722]
[1767140865085,0.0001122,88438.0,88427.0,0.01130876]